Cogmind - Beta 16 --- EXPLORER MODE // 2025.11.19 @ 08:58:30 Player: K.K.Y. Result: Self-destructed Performance ------------- Evolutions (3) 1500 Regions Visited (10) 2000 Robots Destroyed (171) 855 Value Destroyed (5730) 5730 Prototype IDs (26) 520 Alien Tech Used (0) 0 Bonus (536) 536 TOTAL SCORE: 11141 Bonus ------- Follower Combat Kills 236 Registered with UFD 300 Cogmind --------- Core Integrity 214/700 Matter 280/300 Energy 310/310 System Corruption 0% Temperature Cool (12) Movement Treading (160) Location -7/Scraptown Parts ------- > --- POWER (1) -------- Heavy Deuterium Engine > --- PROPULSION (4) --- Medium Treads Medium Treads Medium Treads Medium Treads > --- UTILITY (7) ------ Light Humpback Machine Analyzer Advanced Signal Interpreter Transport Network Coupler Mapping Drone Bay (2/3) > --- WEAPON (2) ------- High-powered Field Laser Chainsword > --- INVENTORY (25) --- Heavy Deuterium Engine Improved Sensor Array Improved Signal Interpreter Advanced Targeting Computer Advanced Targeting Computer Target Analyzer Stasis Canceller Transmission Jammer Layered Light Armor Plating Authchip [R/Combat] Authchip [Power] Authchip [Armor] System Restoration Module Lightning Gun Heavy Particle Cannon Gauss Rifle Remote Datajack Mining Laser Welding Torch Plasma Cutter Peak State ------------ > --- POWER ------------ Heavy Deuterium Engine > --- PROPULSION ------- Medium Treads Medium Treads Heavy Treads > --- UTILITY ---------- High-capacity Storage Unit Machine Analyzer Transport Network Coupler Core Analyzer Hacking Suite Hacking Suite System Restoration Module > --- WEAPON ----------- Cooled Particle Cannon Gauss Cannon > --- INVENTORY -------- Heavy Deuterium Engine Heavy Deuterium Engine Improved Sensor Array Improved Signal Interpreter Advanced Targeting Computer Advanced Targeting Computer Target Analyzer Core Analyzer Transmission Jammer Layered Light Armor Plating System Shield System Restoration Module Lightning Gun Heavy Particle Cannon Gauss Rifle Remote Datajack Mining Laser Welding Torch Plasma Cutter Chainsword [Rating: 59] Favorites ----------- Power Heavy Deuterium Engine Engine Heavy Deuterium Engine Propulsion Medium Treads Treads Medium Treads Leg VSS Leg Hover Unit Backup Propulsion III Flight Unit Improved Flight Unit Utility Hacking Suite Device Sensor Array Storage High-capacity Storage Unit Processor Transport Network Coupler Hackware Hacking Suite Protection Light Armor Plating Weapon High-powered Field Laser Energy Gun High-powered Field Laser Energy Cannon Advanced Beam Cannon Ballistic Gun Enhanced Autogun Ballistic Cannon Gauss Cannon Launcher Precision Grenade Launcher Special Weapon Plasma Cutter Impact Weapon Mace Slashing Weapon Chainsword Build | -11 -10 -9 -9 -8 -7 -7 -7 -7 -7 -7 ------- Run | Yrd Mat Mat Min Mat Fac Was Fac Sto Rec Scr Slots Evolved 7 | . 1 2 . 2 2 . . . . . Power . | . . . . . . . . . . . Propulsion 2 | . . 2 . . . . . . . . Utility 5 | . 1 . . 2 2 . . . . . Weapon . | . . . . . . . . . . . Parts Attached 106 | 6 4 21 3 25 8 8 8 15 4 4 Power 13 | 1 1 2 . 5 . 1 1 1 1 . Engine 13 | 1 1 2 . 5 . 1 1 1 1 . Core . | . . . . . . . . . . . Reactor . | . . . . . . . . . . . Propulsion 42 | 2 . 13 1 12 1 1 4 7 1 . Treads 31 | 2 . 13 1 2 . 1 4 7 1 . Leg 10 | . . . . 9 1 . . . . . Wheel . | . . . . . . . . . . . Hover . | . . . . . . . . . . . Flight 1 | . . . . 1 . . . . . . Utility 26 | 2 1 3 . 4 2 3 2 4 1 4 Device 6 | 1 . . . . . 1 1 1 . 2 Storage 5 | 1 . 1 . 1 . 1 . . . 1 Processor 8 | . . 2 . 2 1 . 1 1 . 1 Hackware 6 | . . . . 1 1 1 . 2 1 . Protection 1 | . 1 . . . . . . . . . Artifact . | . . . . . . . . . . . Weapon 25 | 1 2 3 2 4 5 3 1 3 1 . Energy Gun 7 | 1 . . . 1 2 1 . 2 . . Energy Cannon 5 | . . . 2 2 . . 1 . . . Ballistic Gun 5 | . . 3 . 1 1 . . . . . Ballistic Cannon 3 | . . . . . 1 2 . . . . Launcher 1 | . . . . . 1 . . . . . Special Weapon 1 | . . . . . . . . 1 . . Impact Weapon 2 | . 2 . . . . . . . . . Slashing Weapon 1 | . . . . . . . . . 1 . Piercing Weapon . | . . . . . . . . . . . Special Melee Weapon . | . . . . . . . . . . . Unidentified Prototypes 12 | . . 1 1 4 3 . 1 2 . . Parts Lost 18 | . 2 3 . 1 1 4 3 1 2 1 Power 2 | . . 1 . . . 1 . . . . Propulsion 4 | . . 2 . . 1 1 . . . . Utility 8 | . 1 . . 1 . 1 3 . 1 1 Weapon 4 | . 1 . . . . 1 . 1 1 . Highest Loss Streak 4 | . 2 1 . 1 1 4 1 1 2 1 To Critical Strikes . | . . . . . . . . . . . Average Backups 17 | 1 2 7 19 23 24 11 18 19 19 19 Power . | . . . . . . . . 1 1 1 Propulsion . | . . . . 1 . . . . 1 . Utility 8 | 1 . 2 7 8 16 5 8 9 10 11 Weapon 6 | . 1 4 12 11 6 4 6 5 4 4 Tool/Special . | . . . . . . . . . . . Unused Backups 82 | . . 4 1 19 9 14 11 1 2 21 Power 3 | . . . . 1 1 . . . . 1 Propulsion 2 | . . . . . . . 1 . 1 . Utility 38 | . . 4 . 3 4 10 3 1 1 12 Weapon 35 | . . . 1 15 4 4 6 . . 5 Tool/Special 4 | . . . . . . . 1 . . 3 Average Slot Usage (%) 91 | . 89 87 99 99 95 78 86 90 88 92 Engine 7 | . 12 7 10 8 7 6 7 7 7 7 Treads 19 | . 25 29 40 6 . 4 18 23 28 28 Leg 7 | . . . . 26 27 5 . . . . Device 5 | . 12 10 10 . . 4 6 4 3 9 Storage 7 | . 12 10 10 8 7 5 7 7 7 7 Processor 17 | . . 9 10 23 26 17 18 15 14 20 Hackware 9 | . . . . 7 13 18 15 18 14 5 Energy Gun 3 | . 6 . . 4 1 5 . 3 7 7 Energy Cannon 4 | . . . 19 8 3 . 3 6 . . Ballistic Gun 2 | . . 11 . 3 3 . . . . . Ballistic Cannon 2 | . . . . . 4 7 10 2 . . Impact Weapon 1 | . 15 8 . . . . . . . . Slashing Weapon 1 | . . . . . . . . . 2 7 Peak Build Rating 59 | 6 10 19 20 37 47 46 57 59 55 58 Average Rating 38 | 3 8 13 19 34 42 39 52 54 48 56 On Entrance 30 | . 6 9 19 20 37 46 44 54 50 47 Avg Prop Armor Cover (%) . | . . . . . . . . . . . Naked Turns . | . . . . . . . . . . . Heaviest Build 101 | 16 23 52 54 97 101 99 65 68 62 62 Greatest Support 126 | 40 40 86 86 86 57 70 118 126 112 112 Greatest Overweight (x) 18 | . . . . 18 2 2 . . . . Average Overweight (x) . | . . . . . 1 . . . . . Largest Inventory Capacity 25 | 10 10 20 20 25 25 25 20 20 20 25 Average Capacity 19 | 8 10 12 20 23 25 18 20 20 20 23 Most Carried 25 | 5 3 20 20 25 25 25 20 20 20 21 Average Carried 17 | 2 2 7 19 23 24 11 18 19 19 19 Final Capacity 25 | 10 10 20 20 25 25 20 20 20 20 25 Final Carried 25 | 1 3 20 20 23 25 13 20 19 19 20 Class Distribution -------------------- 98% | Hacker-Mutant Dominant Class ---------------- Hacker-Mutant | -10/Materials Hacker-Mutant | -9/Materials Hacker-Mutant | -9/Mines Hacker-Mutant | -8/Materials Hacker-Mutant | -7/Factory Hacker-Mutant | -7/Waste Hacker-Mutant | -7/Factory Hacker-Mutant | -7/Storage Hacker-Mutant | -7/Recycling Hacker-Mutant | -7/Scraptown Resources | -11 -10 -9 -9 -8 -7 -7 -7 -7 -7 -7 ----------- Run | Yrd Mat Mat Min Mat Fac Was Fac Sto Rec Scr Matter Collected 2708 | 227 63 561 105 378 220 265 370 424 50 45 Remotely . | . . . . . . . . . . . Salvage Created 6958 | . 245 1625 . 1946 617 235 553 1449 288 . Parts 330 | . 7 76 . 96 34 . 38 76 3 . Haulers Intercepted 19 | . 1 5 . 5 4 . . 4 . . Recyclers Shooed 3 | . . 1 . . . . . 2 . . Parts Field Recycled . | . . . . . . . . . . . Retrieved Matter . | . . . . . . . . . . . Parts Self-Destructed . | . . . . . . . . . . . Prevented . | . . . . . . . . . . . Parts Restored . | . . . . . . . . . . . Kills | -11 -10 -9 -9 -8 -7 -7 -7 -7 -7 -7 ------- Run | Yrd Mat Mat Min Mat Fac Was Fac Sto Rec Scr Combat Hostiles Destroyed 121 | . 4 33 . 33 10 1 14 22 4 . Melee 11 | . 1 10 . . . . . . . . Guns 39 | . 1 18 . 16 2 . . 1 1 . Cannons 59 | . . . . 15 8 1 14 21 . . Classes Destroyed 18 | . 5 4 . 6 2 1 . . . . Worker 4 | . 1 2 . . 1 . . . . . Builder 5 | . . . . 1 . . 3 1 . . Tunneler 1 | . . . . 1 . . . . . . Hauler 19 | . 1 5 . 5 4 . . 4 . . Recycler 2 | . . 2 . . . . . . . . Mechanic 3 | . 1 . . 1 1 . . . . . Operator 4 | . . 2 . . 1 . . 1 . . Watcher 12 | . 1 5 . 2 1 . 1 2 . . Swarmer 25 | . . 16 . 3 2 . 4 . . . Grunt 37 | . 4 7 . 16 4 . 1 5 . . Brawler 4 | . . . . 2 . . 1 1 . . Duelist 2 | . . . . 1 . . 1 . . . Protector 1 | . . . . 1 . . . . . . Sentry 36 | . . 10 . 9 . . 2 11 4 . Demolisher 1 | . . . . 1 . . . . . . Hunter 2 | . . . . . 1 . 1 . . . Programmer 12 | . . . . . 3 . 4 5 . . Compactor 1 | . . . . . . 1 . . . . Best Kill Streak 9 | . 7 4 . 4 3 1 4 9 1 . Combat Bots Only 5 | . 4 3 . 3 2 1 3 5 1 . Max Kills in Single Turn 2 | . 1 2 . 2 2 1 2 2 1 . Gunslinging 1 | . . 1 . . . . . . . . Exploded . | . . . . . . . . . . . Melee 1 | . 1 1 . . . . . . . . Uniques/NPCs Destroyed . | . . . . . . . . . . . Combat | -11 -10 -9 -9 -8 -7 -7 -7 -7 -7 -7 -------- Run | Yrd Mat Mat Min Mat Fac Was Fac Sto Rec Scr Hostile Shots Fired 1071 | . 60 209 . 144 50 6 129 279 168 26 Missed 336 | . 8 43 . 38 15 1 49 120 57 5 Hits 735 | . 52 166 . 106 35 5 80 159 111 21 Melee 14 | . . . . 4 . 5 2 . . 3 Projectile 721 | . 52 166 . 102 35 . 78 159 111 18 AOE 2 | . . . . 2 . . . . . . Critical Strikes 19 | . 2 6 . 1 2 3 3 1 . 1 Damage Taken 5378 | . 435 1217 . 1091 358 228 579 762 482 226 Core 949 | . 54 232 . 177 36 197 84 124 35 10 Absorbed by Shields . | . . . . . . . . . . . Ignored by Resistances 3459 | . 265 791 . 664 217 128 370 539 352 133 Core Remaining (%) 71 | 100 78 . 42 67 . . . . . . Volleys Fired 396 | . 5 70 . 122 49 11 40 74 25 . Largest 2 | . 1 2 . 2 2 2 2 2 2 . Hottest 136 | . 40 46 . 136 115 80 73 100 90 . Shots Fired 707 | . 5 140 . 211 80 22 80 135 34 . Gun 349 | . 5 140 . 115 29 16 . 19 25 . Cannon 349 | . . . . 96 51 6 80 116 . . Launcher . | . . . . . . . . . . . Special 9 | . . . . . . . . . 9 . Kinetic 312 | . . 140 . 18 49 6 57 42 . . Thermal 378 | . . . . 193 19 16 23 93 34 . Explosive . | . . . . . . . . . . . Electromagnetic 17 | . 5 . . . 12 . . . . . Robot Hit Streak 52 | . 2 36 . 31 52 32 33 20 30 . Robot Miss Streak 3 | . 1 3 . 3 1 . 2 1 1 . Penetration Max 1 | . . . . . 1 . . . . . Secondary Targets 1 | . . 1 . . . . . . . . Max Gunslinging Chain 1 | . . 1 . . . . . . . . Shots Hit Robots 659 | . 23 192 . 161 72 22 54 103 32 . Core Hits 225 | . 3 51 . 67 27 1 24 46 6 . Critical Kills 5 | . . 4 . . . . . 1 . . Critical Parts Destroyed 12 | . 1 11 . . . . . . . . Critical Strikes 56 | . 1 16 . 13 10 . 7 7 2 . Burn 18 | . . . . 13 . . . 3 2 . Meltdown 1 | . . . . . . . . 1 . . Blast 19 | . . . . . 9 . 7 3 . . Corrupt 1 | . . . . . 1 . . . . . Smash 17 | . 1 16 . . . . . . . . Melee Attacks 118 | . 21 90 . . . . . . 5 2 Impact 111 | . 21 90 . . . . . . . . Slashing 7 | . . . . . . . . . 5 2 Piercing . | . . . . . . . . . . . Sneak Attacks 5 | . 4 1 . . . . . . . . Combat Hostiles . | . . . . . . . . . . . Follow-up Attacks 16 | . 2 14 . . . . . . . . Damage Inflicted 15452 | . 904 4143 . 3461 1778 346 1415 2788 617 . Guns 5139 | . 36 1683 . 1861 442 213 . 388 516 . Cannons 6869 | . . . . 1596 1336 133 1410 2394 . . Explosions . | . . . . . . . . . . . Melee 3328 | . 868 2460 . . . . . . . . Ramming 20 | . . . . 4 . . 5 6 5 . Kinetic 4796 | . . 1683 . 226 1081 133 888 785 . . Thermal 7068 | . . . . 3231 493 213 522 1997 612 . Explosive . | . . . . . . . . . . . Electromagnetic 240 | . 36 . . . 204 . . . . . Impact 3328 | . 868 2460 . . . . . . . . Slashing . | . . . . . . . . . . . Piercing . | . . . . . . . . . . . Highest Corruption 3 | . . . . . 1 1 3 1 . . Average Corruption 1 | . . . . . 1 1 2 1 . . Corruption Purged 6 | . . . . . . 1 3 2 . . Corruption Blocked . | . . . . . . . . . . . Effects 5 | . . . . . 1 2 2 . . . Message Errors 2 | . . . . . 1 1 . . . . Matter Fused 2 | . . . . . . . 2 . . . Parts Rejected 1 | . . . . . . 1 . . . . Overload Shots . | . . . . . . . . . . . Overflow Damage 856 | . 251 525 . 34 19 . 23 4 . . Projectiles 80 | . . . . 34 19 . 23 4 . . Explosions . | . . . . . . . . . . . Melee 776 | . 251 525 . . . . . . . . Knockbacks 18 | . 5 4 . . 2 . 6 1 . . Impact 10 | . 5 4 . . . . 1 . . . Kinetic 8 | . . . . . 2 . 5 1 . . Secondary . | . . . . . . . . . . . Self-Inflicted Damage . | . . . . . . . . . . . Shots . | . . . . . . . . . . . Rammed 3 | . . . . . . . 1 1 1 . Targets Rammed 4 | . . . . 1 . . 1 1 1 . Kicked 1 | . . . . 1 . . . . . . Crushed . | . . . . . . . . . . . Highest Temperature 543 | . 108 7 . 543 295 . 8 114 184 . Average Temperature 104 | . 51 2 . 133 71 . 4 33 79 . Received Heat Transfer 2643 | . 426 558 . 744 153 . 72 336 246 108 Effects 15 | . . . . 15 . . . . . . Shutdowns 4 | . . . . 4 . . . . . . Energy Bleed 1 | . . . . 1 . . . . . . Interference 6 | . . . . 6 . . . . . . Matter Decay 1 | . . . . 1 . . . . . . Damage (minor) 3 | . . . . 3 . . . . . . Siege Activations . | . . . . . . . . . . . Martial Activations . | . . . . . . . . . . . Shielding Activations . | . . . . . . . . . . . Robots Disrupted . | . . . . . . . . . . . Combat Hostiles . | . . . . . . . . . . . Robots Corrupted 12 | . 3 9 . . . . . . . . Combat Hostiles 7 | . 2 5 . . . . . . . . Parts Fried 16 | . 2 13 . . 1 . . . . . Impact Corruptions 40 | . 10 30 . . . . . . . . Robots Melted 6 | . . . . 2 . . . 1 3 . Combat Hostiles 5 | . . . . 2 . . . . 3 . Parts Melted 30 | . . . . 10 1 . . 13 6 . Heat Transferred 12914 | . . . . 6661 703 592 666 2960 1332 . Parts Sabotaged . | . . . . . . . . . . . Parts Stolen . | . . . . . . . . . . . Parts Stripped . | . . . . . . . . . . . Power Chain Reactions . | . . . . . . . . . . . Alert | -11 -10 -9 -9 -8 -7 -7 -7 -7 -7 -7 ------- Run | Yrd Mat Mat Min Mat Fac Was Fac Sto Rec Scr Maximum Alert Level 1 | . . . . 1 . . . . . . Low Security (%) 97 | 100 100 100 100 89 100 100 100 100 100 . Level 1 2 | . . . . 10 . . . . . . Level 2 . | . . . . . . . . . . . Level 3 . | . . . . . . . . . . . Level 4 . | . . . . . . . . . . . Level 5 . | . . . . . . . . . . . High Security . | . . . . . . . . . . . Max Security . | . . . . . . . . . . . Peak Influence 292 | . 97 70 . 292 56 18 83 154 20 . Initial 2 | . . . . . . 2 . . . . Average 18 | . 10 11 . 57 5 . 7 24 1 . Influence Increases 4255 | . 139 1027 . 1284 384 62 446 771 142 . Destroy 0b10 Robot/C 2460 | . 80 660 . 720 200 . 280 440 80 . Destroy 0b10 Robot/NC 285 | . 20 95 . 70 40 . 20 40 . . Destroy Leader 776 | . 24 200 . 198 70 . 92 192 . . Allied During Kill 7 | . . . . 7 . . . . . . Trap Triggered on 0b10 20 | . . . . . . . . 20 . . Successful Hack 187 | . . 11 . 25 55 . 26 12 58 . Disable Machine 80 | . . 12 . 20 . . 16 32 . . Anti-Garrison Action 150 | . . . . 150 . . . . . . Destroy Structure 155 | . . 4 . 49 4 62 12 20 4 . Lose Combat Pursuer 135 | . 15 45 . 45 15 . . 15 . . Influence Decreases 4255 | . 139 1027 . 1284 372 74 446 771 142 . Entered New Map 10 | . . . . . . 10 . . . . Time Decay 4043 | . 124 986 . 1214 372 18 446 761 122 . Lost Part 40 | . 15 5 . 10 . . . 10 . . Lost Ally 106 | . . . . 60 . 46 . . . . Purge Threat 56 | . . 36 . . . . . . 20 . Squads Dispatched 26 | . . 3 . 5 5 . 7 6 . . Investigation 4 | . . 2 . . . . 2 . . . Extermination 14 | . . . . . 4 . 5 5 . . Reinforcement 5 | . . 1 . 2 1 . . 1 . . Assault 1 | . . . . 1 . . . . . . Garrison 2 | . . . . 2 . . . . . . Intercept . | . . . . . . . . . . . Searches Triggered . | . . . . . . . . . . . Construction Impeded . | . . . . . . . . . . . Haulers Reinforced 2 | . . . . . 1 . . 1 . . Active Scanning Responses . | . . . . . . . . . . . Cargo Convoy Interrupts . | . . . . . . . . . . . Stealth | -11 -10 -9 -9 -8 -7 -7 -7 -7 -7 -7 --------- Run | Yrd Mat Mat Min Mat Fac Was Fac Sto Rec Scr Distress Signals 10 | . 1 3 . 6 . . . . . . Communications Jammed . | . . . . . . . . . . . Distress Signals . | . . . . . . . . . . . Times Spotted 178 | . 11 43 . 53 14 6 16 25 4 6 Peak Tracking Total 7 | . 5 5 . 7 2 3 3 4 1 7 Tactical Retreats 8 | . 1 3 . 2 1 . . 1 . . Traps | -11 -10 -9 -9 -8 -7 -7 -7 -7 -7 -7 ------- Run | Yrd Mat Mat Min Mat Fac Was Fac Sto Rec Scr Traps Triggered 7 | . 1 2 . . 2 . 1 1 . . Indirectly . | . . . . . . . . . . . Trap Hack Attempts . | . . . . . . . . . . . Triggered . | . . . . . . . . . . . Disarmed 18 | . . . . 12 . . . 6 . . Reprogrammed 8 | . . . . . 4 . . 4 . . Reused 2 | . . . . . . . . 2 . . Traps Extracted . | . . . . . . . . . . . Installed . | . . . . . . . . . . . Triggered 2 | . . . . . . . . 2 . . Machines | -11 -10 -9 -9 -8 -7 -7 -7 -7 -7 -7 ---------- Run | Yrd Mat Mat Min Mat Fac Was Fac Sto Rec Scr Machines Disabled 21 | . . 3 . 6 . . 4 8 . . Max in Single Turn 2 | . . 1 . . . . 1 2 . . Garrison Access 2 | . . . . 1 . . . 1 . . Machines Repaired . | . . . . . . . . . . . Machines Dismantled 1 | . . . . . . . . 1 . . Machines Sabotaged . | . . . . . . . . . . . Overloaded Fab Kills . | . . . . . . . . . . . Hacking | -11 -10 -9 -9 -8 -7 -7 -7 -7 -7 -7 --------- Run | Yrd Mat Mat Min Mat Fac Was Fac Sto Rec Scr Machines Accessed 48 | . 1 10 . 10 6 . 5 9 6 1 Terminals 44 | . 1 10 . 9 5 . 5 8 6 . Fabricators . | . . . . . . . . . . . Repair Stations . | . . . . . . . . . . . Recycling Units 1 | . . . . 1 . . . . . . Scanalyzers 1 | . . . . . 1 . . . . . Garrison Access 1 | . . . . . . . . 1 . . Total Hacks 178 | . 3 33 . 28 20 . 22 29 26 17 Successful 131 | . 3 19 . 22 19 . 14 21 16 17 Failed 47 | . . 14 . 6 1 . 8 8 10 . Catastrophic 7 | . . 3 . 1 . . . 1 2 . Database Lockouts . | . . . . . . . . . . . Manual 14 | . . 4 . 2 3 . . 3 2 . Terminals 157 | . 3 33 . 27 18 . 22 28 26 . Fabricators . | . . . . . . . . . . . Repair Stations . | . . . . . . . . . . . Recycling Units 1 | . . . . 1 . . . . . . Scanalyzers 2 | . . . . . 2 . . . . . Garrison Access 1 | . . . . . . . . 1 . . Terminal Hacks 127 | . 3 19 . 21 17 . 14 20 16 17 Record 18 | . . . . . 1 . . . . 17 Part Schematic 10 | . . . . . 1 . 2 2 5 . Robot Schematic 3 | . . . . . 2 . 1 . . . Robot Analysis 11 | . . 4 . 1 1 . 2 1 2 . Prototype ID Bank 8 | . 1 2 . 1 2 . 2 . . . Open Door 3 | . . . . . . . . 3 . . Level Access Points 1 | . . . . 1 . . . . . . Branch Access Points 3 | . . . . 1 . . 1 . 1 . Emergency Access Points 3 | . . 2 . . . . 1 . . . Terminal Index 1 | . . . . . 1 . . . . . Unreport Threat 2 | . . 1 . . . . . . 1 . Locate Traps 2 | . 1 . . . . . . 1 . . Disarm Traps 6 | . . . . 4 . . . 2 . . Reprogram Traps 4 | . . . . . 2 . . 2 . . Maintenance Status 3 | . . . . 3 . . . . . . Security Status 3 | . . . . 1 1 . 1 . . . Surveillance Status 1 | . . . . 1 . . . . . . Patrol Status 2 | . . 1 . . 1 . . . . . Transport Status 3 | . . 1 . 2 . . . . . . Investigation Status 1 | . . . . 1 . . . . . . Reinforcement Status 1 | . . . . . . . . 1 . . Recall Investigation 1 | . . . . . . . . 1 . . Hauler Manifests 8 | . . 2 . 1 1 . 1 2 1 . Registered Components 4 | . 1 1 . 1 . . . . 1 . Registered Prototypes 2 | . . . . . 1 . . . 1 . Zone Layout 22 | . . 4 . 3 3 . 3 5 4 . Garrison Registry 1 | . . 1 . . . . . . . . Fabricator Hacks . | . . . . . . . . . . . Repair Station Hacks . | . . . . . . . . . . . Recycling Unit Hacks 1 | . . . . 1 . . . . . . Report Inventory 1 | . . . . 1 . . . . . . Scanalyzer 2 | . . . . . 2 . . . . . Retrieve Study 2 | . . . . . 2 . . . . . Garrison Access Hacks 1 | . . . . . . . . 1 . . Seal Access 1 | . . . . . . . . 1 . . Unauthorized Hacks . | . . . . . . . . . . . Terminals . | . . . . . . . . . . . Fabricators . | . . . . . . . . . . . Repair Stations . | . . . . . . . . . . . Recycling Units . | . . . . . . . . . . . Scanalyzers . | . . . . . . . . . . . Garrison Access . | . . . . . . . . . . . Data Cores Recovered 2 | . . 1 . . 1 . . . . . Used 1 | . . 1 . . . . . . . . Hacking Detections 33 | . . 9 . 5 5 . 5 3 6 . Full Trace Events 6 | . . 2 . . . . 2 . 2 . Feedback Events . | . . . . . . . . . . . Feedback Blocked . | . . . . . . . . . . . Robot Schematics Acquired 3 | . . . . . 2 . 1 . . . Robots Built . | . . . . . . . . . . . Authchips . | . . . . . . . . . . . Time . | . . . . . . . . . . . Total Robot Build Rating . | . . . . . . . . . . . Part Schematics Acquired 10 | . . . . . 1 . 2 2 5 . Parts Built . | . . . . . . . . . . . Authchips . | . . . . . . . . . . . Time . | . . . . . . . . . . . Total Part Build Rating . | . . . . . . . . . . . Part Studies Acquired 2 | . . . . . 2 . . . . . Parts Repaired . | . . . . . . . . . . . Time . | . . . . . . . . . . . Parts Recycled . | . . . . . . . . . . . Recycled Matter . | . . . . . . . . . . . Retrieved Matter . | . . . . . . . . . . . Retrieved Components . | . . . . . . . . . . . Parts Scanalyzed . | . . . . . . . . . . . Part Schematics Acquired . | . . . . . . . . . . . Parts Damaged . | . . . . . . . . . . . Bothacking | -11 -10 -9 -9 -8 -7 -7 -7 -7 -7 -7 ------------ Run | Yrd Mat Mat Min Mat Fac Was Fac Sto Rec Scr Used RIF Installer . | . . . . . . . . . . . Robots Hacked . | . . . . . . . . . . . Non-combat . | . . . . . . . . . . . Combat . | . . . . . . . . . . . Robot Hacks Applied . | . . . . . . . . . . . Relay Couplers Released 1 | . . . . 1 . . . . . . Machine Destruction 1 | . . . . 1 . . . . . . Fabnet Peak Effective % . | . . . . . . . . . . . Robots Rewired . | . . . . . . . . . . . Allies Hacked . | . . . . . . . . . . . Hacks Repelled . | . . . . . . . . . . . Allies | -11 -10 -9 -9 -8 -7 -7 -7 -7 -7 -7 -------- Run | Yrd Mat Mat Min Mat Fac Was Fac Sto Rec Scr Total Allies 21 | . . . 3 . . 18 . . . . Largest Group 18 | . . . 3 3 . 18 . . . . Highest-Rated Group 434 | . . . 40 40 . 434 . . . . Highest-Rated Ally 35 | . . . 16 16 . 35 . . . . Total Orders 10 | . . . . . . . . 2 . 8 STAY 2 | . . . . . . . . . . 2 FOLLOW 1 | . . . . . . . . 1 . . EXPLORE 1 | . . . . . . . . . . 1 RETURN 6 | . . . . . . . . 1 . 5 Ally Attacks 166 | . . . . 33 . 133 . . . . Total Damage 6110 | . . . . 593 . 5517 . . . . Kills 22 | . . . . 7 . 15 . . . . Allies Corrupted . | . . . . . . . . . . . Allies Melted . | . . . . . . . . . . . Intel | -11 -10 -9 -9 -8 -7 -7 -7 -7 -7 -7 ------- Run | Yrd Mat Mat Min Mat Fac Was Fac Sto Rec Scr Active Infowar (turns) 17604 | 39 701 2782 1011 2781 1898 831 2077 1960 988 2536 Sensors 4821 | 39 701 2782 1011 288 . . . . . . T.N.C. 13067 | . . . . 2777 1898 831 2077 1960 988 2536 Machine Analysis 12001 | . . . . 2372 1898 831 1660 1716 988 2536 Robot Analysis Total 11 | . . 4 . 1 1 . 2 1 2 . Derelict Logs Recovered 1 | . . . 1 . . . . . . . Drone Launches 25 | . . . . . . . . 17 . 8 Drone Recoveries 9 | . . . . . . . . 1 1 7 Exploration | -11 -10 -9 -9 -8 -7 -7 -7 -7 -7 -7 ------------- Run | Yrd Mat Mat Min Mat Fac Was Fac Sto Rec Scr Turns Passed 17850 | 55 701 2782 1011 3011 1898 831 2077 1960 988 2536 Spaces Moved 8163 | 44 239 1232 586 1365 903 439 1141 717 555 942 Core 72 | 24 . . . 2 . 46 . . . . Treads 6008 | 20 239 1232 586 262 . 314 1141 717 555 942 Legs 2074 | . . . . 1101 903 70 . . . . Wheels . | . . . . . . . . . . . Hover 9 | . . . . . . 9 . . . . Flight . | . . . . . . . . . . . Fastest Speed 50 | 50 160 160 160 160 170 50 158 160 160 160 Average Speed 164 | 100 160 160 160 178 181 149 161 160 160 160 Slowest Speed 950 | 160 160 160 160 950 247 250 163 163 160 160 Overloaded Moves . | . . . . . . . . . . . Propulsion Burnouts . | . . . . . . . . . . . Robots Hopped . | . . . . . . . . . . . Potential Cave-ins 1 | . . . . . . . . . 1 . Cave-ins Triggered . | . . . . . . . . . . . Exploration Rate (%) 67 | 3 32 97 96 91 22 96 31 87 99 91 Regions Visited 10 Branch Regions 4 Pre-discovered Areas 3 | . . . . . . . . . . 3 Known Exits Taken 8 | 1 1 1 1 1 . . 1 1 1 . Unknown Exits Taken . | . . . . . . . . . . . Scrap Searched 5 | . . . 3 . . . . . . 2 Spaces Dug 14 | . . . . 1 . . . 6 5 2 Terrain Destroyed 51 | . . . . 9 2 . 11 22 5 2 Melee 7 | . . . . . . . . . 5 2 Projectile 44 | . . . . 9 2 . 11 22 . . AOE . | . . . . . . . . . . . Terrain Rammed . | . . . . . . . . . . . Walls Destroyed . | . . . . . . . . . . . Machines Disabled . | . . . . . . . . . . . Actions | -11 -10 -9 -9 -8 -7 -7 -7 -7 -7 -7 --------- Run | Yrd Mat Mat Min Mat Fac Was Fac Sto Rec Scr Total 11710 | 54 520 1774 661 1757 1100 591 1307 1375 603 1968 Wait 2638 | . 250 320 65 164 113 108 73 535 5 1005 Move 8154 | 43 238 1231 585 1364 903 438 1140 716 554 942 Hop . | . . . . . . . . . . . Pick Up 149 | 5 5 39 4 33 13 12 26 3 4 5 Fast Attach 39 | 2 . 1 . 10 6 7 1 8 1 3 Attach 38 | 4 3 11 2 3 1 4 4 3 1 2 Detach 15 | . . 3 . 1 . 4 . 2 1 4 Swap 40 | . 1 9 1 13 1 1 5 6 2 1 Drop 121 | . . 16 4 46 14 6 17 11 3 4 Fire 396 | . 5 70 . 122 49 11 40 74 25 . Melee 99 | . 18 74 . . . . . . 5 2 Ram . | . . . . . . . . . . . Kick 1 | . . . . 1 . . . . . . Crush 3 | . . . . . . . 1 1 1 . Escape Stasis . | . . . . . . . . . . . Rewire . | . . . . . . . . . . . Trap . | . . . . . . . . . . . Miscellaneous 17 | . . . . . . . . 16 1 . Route ------- -11/Scrapyard -10/Materials (discovered 2 exits: *Mat / *Min) -9/Materials (discovered 5 exits: *Mat x3 / *Min x2) -9/Mines (discovered 2 exits: *Mat x2) -8/Materials (discovered 3 exits: *Fac x3) -7/Factory -7/Waste -7/Factory (discovered 5 exits: *Fac / *Sto x2 / Low x2) -7/Storage (discovered 2 exits: *Fac / *Rec) -7/Recycling (discovered 2 exits: *Fac / *Scr) -7/Scraptown (discovered 2 exits: *Fac x2) History --------- Turn | Location | Event 12 | -11/Scrapyard | Identified exit to Materials 12 | -11/Scrapyard | Discovered exit to Materials (range 15) 56 | -11/Scrapyard | Entered Materials 56 | -10/Materials | Evolved 1 slot: Utility x1 300 | -10/Materials | Build established: Hacker-Mutant 345 | -10/Materials | Identified exit to Mines 345 | -10/Materials | Discovered exit to Mines (range 9) 551 | -10/Materials | Identified exit to Materials 551 | -10/Materials | Discovered exit to Materials (range 12) 656 | -10/Materials | Derelicts attacked the area 757 | -10/Materials | Entered another Materials area 757 | -9/Materials | Evolved 2 slots: Propulsion x2 852 | -9/Materials | Identified exit to Mines 852 | -9/Materials | Discovered exit to Mines (range 14) 1412 | -9/Materials | Identified exit to Materials 1412 | -9/Materials | Discovered exit to Materials (range 16) 1843 | -9/Materials | Discovered exit to Materials (range 16) 2124 | -9/Materials | Discovered exit to Mines (range 13) 2159 | -9/Materials | Core integrity fell below 50% 2576 | -9/Materials | Discovered exit to Materials (range 13) 3539 | -9/Materials | Entered Mines 3672 | -9/Mines | Discovered exit to Materials (range 4) 3683 | -9/Mines | Assisted by bots powering up and referring to "LRC-V3" 3951 | -9/Mines | A weapon hastily lodged in a ceiling crevice suddenly fell to the ground 4550 | -9/Mines | Entered Materials 4550 | -8/Materials | Accompanied by 3 allies 4550 | -8/Materials | Evolved 2 slots: Utility x2 4733 | -8/Materials | Garrison activated, responded to threat 5293 | -8/Materials | Identified exit to Factory 5293 | -8/Materials | Discovered exit to Factory (range 13) 5747 | -8/Materials | Discovered exit to Factory (range 15) 7561 | -8/Materials | Entered Factory 7561 | -7/Factory | Evolved 2 slots: Utility x2 8204 | -7/Factory | Identified exit to Lower Caves 8204 | -7/Factory | Discovered exit to Lower Caves (range 5) 9459 | -7/Factory | Sucked down chute 9459 | -7/Factory | Entered Waste 9488 | -7/Waste | Spotted C-40 Crusher 9542 | -7/Waste | Spotted C-40 Crusher 9599 | -7/Waste | Crushed by Compactor (1 part destroyed, 2 dropped) 9613 | -7/Waste | Crushed by Compactor (1 part destroyed, 2 dropped) 9616 | -7/Waste | Crushed by Compactor (1 part destroyed, 1 dropped) 9619 | -7/Waste | Crushed by Compactor (1 part destroyed, 2 dropped) 9619 | -7/Waste | Spotted C-40 Crusher 9629 | -7/Waste | Warlord forces began an assault 9650 | -7/Waste | Lost 4 parts (1p1n1u1w) 9650 | -7/Waste | Allies destroyed C-40 Crusher 9650 | -7/Waste | Allies destroyed C-40 Crusher 9656 | -7/Waste | Allies destroyed C-40 Crusher 9686 | -7/Waste | Lost 9 allies 9695 | -7/Waste | Spotted C-40 Crusher 9705 | -7/Waste | Allies destroyed C-40 Crusher 9730 | -7/Waste | Spotted C-40 Crusher 9755 | -7/Waste | Spotted C-40 Crusher 9763 | -7/Waste | Allies destroyed C-40 Crusher 9794 | -7/Waste | Crushed by Compactor (0 parts destroyed, 1 dropped) 9831 | -7/Waste | Lost 8 allies 9907 | -7/Waste | Destroyed C-40 Crusher 10209 | -7/Waste | Identified exit to Factory 10209 | -7/Waste | Discovered exit to Factory (range 16) 10290 | -7/Waste | Entered Factory 10314 | -7/Factory | Identified exit to Storage 12346 | -7/Factory | Identified exit to Factory 12346 | -7/Factory | Discovered exit to Factory (range 14) 12367 | -7/Factory | Entered Storage 12808 | -7/Storage | Core integrity fell below 50% 13502 | -7/Storage | Discovered exit to Factory (range 16) 14301 | -7/Storage | Identified exit to Recycling 14301 | -7/Storage | Discovered exit to Recycling (range 3) 14315 | -7/Storage | Lost 11 allies 14327 | -7/Storage | Entered Recycling 14327 | -7/Recycling | Accompanied by 5 allies 14815 | -7/Recycling | Identified exit to Factory 14815 | -7/Recycling | Discovered exit to Factory (range 20) 15277 | -7/Recycling | Scanned before Scraplab entrance 15299 | -7/Recycling | Entered Scraplab 15312 | -7/Recycling | Identified exit to Scraptown 15312 | -7/Recycling | Discovered exit to Scraptown (range 3) 15315 | -7/Recycling | Entered Scraptown 15641 | -7/Scraptown | Discovered exit to Factory (range 11) 15743 | -7/Scraptown | Visited Comm Corps 15812 | -7/Scraptown | Visited SPCMW 15873 | -7/Scraptown | Visited Shadow of the Wyrm 15907 | -7/Scraptown | Visited Assassins FH 15985 | -7/Scraptown | Visited CR-KLE's Repair Center 16007 | -7/Scraptown | Visited Supply Room 16092 | -7/Scraptown | Visited Red Mages 16478 | -7/Scraptown | Visited UFD Registry 16478 | -7/Scraptown | Registered with UFD as "Kinetibay" 16563 | -7/Scraptown | Visited Cartography Club 17373 | -7/Scraptown | Discovered exit to Factory (range 49) 17835 | -7/Scraptown | Attacked by Scraptown defenders 17851 | -7/Scraptown | Learned location of Proximity Caves (-5) 17851 | -7/Scraptown | Learned location of Extension (-4) 17851 | -7/Scraptown | Learned location of Archives (-4) 17851 | -7/Scraptown | Learned 16 Materials zone layouts 17851 | -7/Scraptown | Learned 16 Factory zone layouts 17851 | -7/Scraptown | Learned 12 Materials zone layouts 17851 | -7/Scraptown | Learned 4 Storage zone layouts 17851 | -7/Scraptown | Learned 8 Access zone layouts 17851 | -7/Scraptown | Learned 4 Recycling zone layouts 17851 | -7/Scraptown | Learned 12 Lower Caves zone layouts 17851 | -7/Scraptown | Learned 12 Proximity Caves zone layouts 17851 | -7/Scraptown | Learned 24 Proximity Caves zone layouts 17851 | -7/Scraptown | Learned location of 3 exits from Factory 17851 | -7/Scraptown | Learned location of 1 exit from Lower Caves 17851 | -7/Scraptown | Self-destructed Last Messages --------------- Proximity zones. Data stored: Proximity Caves zone layouts (x12). >>Record "ZONES/PRO=24" Proximity zones. Data stored: Proximity Caves zone layouts (x24). >>Record "EXITS/FAC=3" Factory exits. Data stored: Factory exits (x3). >>Record "ACCESS/FAC=3" Factory entrances. Data stored: Factory entrances (x3). >>Record "ACCESS/UPP=1" Upper Caves entrance. Data stored: Upper Caves entrances (x1). >>Record "ACCESS/UPP=2" Upper Caves entrances. Data stored: Upper Caves entrances (x2). >>Record "EXITS/LOW=1" Lower Caves exit. Data stored: Lower Caves exits (x1). Map ----- +----------------------------------------------------+ | ????????????????????????????????????????????????#? | | ?????????????????????????????????????????????????? | | ?????????????????????????????????????????????????? | | ?????????????????????????????????????????????????? | | ???????????????????#???????????????????????????#?? | | ??????????????#?#?#?###???????????????????#??????? | | ???????????#################?????????????????????? | | ??????????###################?#??????????????????? | | ???????? "?#####################?????????????#???? | | ?????????"#########################????????#?????? | | #""?????"?########################???????????????? | | ?? ########################?????????????#?? | | ##########################?????#??#????# | | ###########################???#???##?### | | " """"############################"""#?"?"??""|?#" | | ??? "############################"" ##""!##""|##! | | ??? ""############################"" | | ???"""############################ | | ???"""############################################ | | ??""""#################################?#?#?????#? | | ??################## # # # ##########?#??????? | | ??##################### # # ## ###""""""""??"####? | | ??#################n##### # ###""""" X """?#### | | ??"""""""""""###### # # # ###""" """"##""" | | ?#"""""""""""###### # ## #### ####" "|""## " | | ?#"""""""""""###### ##@x # ####""" """"## | | ##""""" """""###### ####X#x j ####"""" ""## " | | /#""""" """""###### ## #### # ####"" &## " | | /#""""" """""###### # h# ###"" "" "&## " | | /#"""" """""########### ##"######"" "" "&## " | | "# ###### ### "## | | # ###### ###" ## | | # ############## ########### ########## | | #### #####################" ########### ########## | | #########"""" """"""""""" """""""""" | | #########" | | #########" | | #########" | | #########" | | ##### #########" | | ??#?# #####"""" """"""""""""""""""""" | | ????# #####"""" """"""""""""""""""""" | | ###?# #####"""" ""###### ########### | | ""#?# #####"""" ""# #?##?# | | ""#?# #####"""" ""# X"?#### | | ""#?# ###"#"""" ""# "" "" #####? | | ""#?# ""#"#"""" ""# "" "" X"???## | | "#?# """"#"""" ""# " " ###### | | "#?# ""#######" "" "" | | ""#?# ###??#??#" "" "" | +----------------------------------------------------+ Best States ------------- Heat Dissipation 34 Energy Generation 18 Energy Capacity 310 Matter Stores 300 Matter Capacity 300 Sight Range 16 Robot Scan Range 14 Terrain Scan Density 10 Base Temperature (-) 150 Armor Coverage 150 Resistance: KI 35 Resistance: TH 35 Resistance: EX 35 Resistance: EM 35 Resistance: I 35 Resistance: S 35 Resistance: P 35 Evasion (%) 50 Target Analysis 5 Core Analysis 6 Recoil Reduction 4 Offensive Hacking 50 Defensive Hacking 10 Authchip Count 3 Item Schematics ----------------- Cld. Nuclear Pulse Thruster | -7/Factory | Hacked Adv. Shield Generator | -7/Factory | Hacked IFF Parser | -7/Factory | Hacked Imp. Remote Datajack | -7/Storage | Hacked Imp. VSS Leg | -7/Storage | Hacked Adv. Signal Interpreter | -7/Recycling | Hacked Adv. Cooling System | -7/Recycling | Hacked Adv. Terrain Scanner | -7/Recycling | Hacked Imp. Transmission Jammer | -7/Recycling | Hacked Flexi-carbon Leg | -7/Recycling | Hacked Robot Schematics ------------------ S-27 Virus | -7/Factory | Hacked B-48 Gladiator | -7/Factory | Hacked G-47 Trooper | -7/Factory | Hacked Fabricated ------------ Nothing Repaired ---------- Nothing Studied --------- VSS Leg | -7/Factory | Hacked Carbon-fiber Leg | -7/Factory | Hacked Alien Tech Used ----------------- None Achievements -------------- None Challenges ------------ None Game ------ Seed QuantumGravitonCartridge Manual? 0 Play Time 01:43:05 Cumulative 113.5 hours Start 2025.11.19 @ 07:17:16 End 2025.11.19 @ 08:58:30 Sessions 1 Manual Loads 0 Difficulty Explorer Special Mode None Game No. 128 Rogue 0 Adventurer 0 Explorer 128 Win Type - Total 0 Types 0/0/0/0/0/0/0/0/0/0 Lore% 64 Gallery% 63 Achievement% 49 Wizard Run 0 Options --------- Layout 1 ASCII 0 Keyboard 0 Movement Mouse Keybinds 0 Fullscreen 1 Font 24/Smallcaps Map View 50x35 Zoom Use 0% Tactical HUD 1 Map Filters NONE Filters NONE Steam 1 RUN: b5ced24d-fff5-4bac-8721-a985d2db7d9f